bitfinex/quotes_BTCUSD_20251009
["timestamp","ask_amount","ask_price","bid_price","bid_amount"]
[1759975851509,0.39131622,122340.0,122330.0,0.11253]
[1759975851712,0.89479504,122340.0,122330.0,0.10104]
[1759975851918,0.89479504,122340.0,122330.0,0.33372]
[1759975852122,0.89479504,122340.0,122330.0,0.23864]
[1759975852329,0.89379504,122340.0,122330.0,0.23264]
[1759975852508,0.89379504,122340.0,122330.0,0.40613219]
[1759975852666,0.89379504,122340.0,122330.0,0.39613219]
[1759975852858,0.89479504,122340.0,122330.0,0.40213219]
[1759975853068,0.89479504,122340.0,122330.0,0.16949219]
[1759975853306,0.89479504,122340.0,122330.0,0.40213219]
[1759975853307,0.73131622,122340.0,122330.0,0.40213219]
[1759975853464,0.39253734,122340.0,122330.0,0.16949219]
[1759975853867,0.00241734,122340.0,122330.0,0.26380577]
[1759975854128,0.00241734,122340.0,122330.0,0.45344219]
[1759975854333,0.00141734,122340.0,122330.0,0.45344219]
[1759975854670,0.00241734,122340.0,122330.0,0.22480219]
[1759975854906,0.00241734,122340.0,122330.0,0.45144219]
[1759975855114,0.00141734,122340.0,122330.0,0.44744219]
[1759975855322,0.00141734,122340.0,122330.0,0.45544219]
[1759975855581,0.00241734,122340.0,122330.0,0.46044219]
[1759975856284,0.00241734,122340.0,122330.0,0.22780219]
[1759975856475,0.00241734,122340.0,122330.0,0.46044219]
[1759975856731,0.00241734,122340.0,122330.0,0.22780219]
[1759975857088,0.00241734,122340.0,122330.0,0.35975883]
[1759975857284,0.00241734,122340.0,122330.0,0.54352425]
[1759975857515,0.00241734,122340.0,122330.0,0.46044219]
[1759975857720,0.00241734,122340.0,122330.0,0.22780219]
[1759975857926,0.35701622,122340.0,122330.0,0.52276219]
[1759975858332,0.00241734,122340.0,122330.0,0.54552219]
[1759975860587,0.00241734,122340.0,122330.0,0.46044219]
[1759975860790,0.00241734,122340.0,122330.0,0.54548219]
[1759975863163,0.00241734,122340.0,122330.0,0.31284219]
[1759975863581,0.00241734,122340.0,122330.0,0.54540219]
[1759975863802,0.00241734,122340.0,122330.0,0.55404585]
[1759975863970,0.00241734,122340.0,122330.0,0.32148585]
[1759975864179,0.00241734,122340.0,122330.0,0.31284219]
[1759975864761,0.00241734,122340.0,122330.0,0.54536219]
[1759975866932,0.00241734,122340.0,122330.0,0.54532219]
[1759975868174,0.00241734,122340.0,122330.0,0.22780219]
[1759975868370,0.00241734,122340.0,122330.0,0.54532219]
[1759975868870,0.00241734,122340.0,122330.0,0.22780219]
[1759975869009,0.39219622,122340.0,122330.0,0.26153219]
[1759975869204,0.39219622,122340.0,122330.0,0.49397219]
[1759975871426,0.05341734,122340.0,122330.0,0.49397219]
[1759975871637,0.39219622,122340.0,122330.0,0.49397219]
[1759975873641,0.39219622,122340.0,122330.0,0.49393219]
[1759975874267,0.00241734,122340.0,122330.0,0.54758219]
[1759975875068,0.00241734,122340.0,122330.0,0.61989077]
[1759975875698,0.00241734,122340.0,122330.0,0.54758219]
[1759975881030,0.00241734,122340.0,122330.0,0.23014219]
[1759975881239,0.00241734,122340.0,122330.0,0.54758219]
[1759975882407,0.34119622,122340.0,122330.0,0.23014219]
[1759975882586,0.34119622,122340.0,122330.0,0.54758219]
[1759975882812,0.00241734,122340.0,122330.0,0.54758219]
[1759975884371,0.00241734,122340.0,122330.0,0.20521219]
[1759975884606,0.00241734,122340.0,122330.0,0.54758219]
[1759975885528,0.51969504,122340.0,122330.0,0.20521219]
[1759975885691,0.51969504,122340.0,122330.0,0.49393219]
[1759975885692,0.55567504,122340.0,122330.0,0.49393219]
[1759975886608,0.05341734,122340.0,122330.0,0.27780219]
[1759975886810,0.53098504,122340.0,122330.0,0.51020219]
[1759975888626,0.53110679,122340.0,122330.0,0.51020219]
[1759975890139,0.19220616,122340.0,122330.0,0.51020219]
[1759975890357,0.53110679,122340.0,122330.0,0.51020219]
[1759975890953,0.55579679,122340.0,122330.0,0.49393219]
[1759975891724,0.55579679,122340.0,122330.0,0.013]
[1759975891943,0.55579679,122340.0,122330.0,0.33044]
[1759975892859,0.55579679,122340.0,122330.0,0.49393219]
[1759975893657,0.55579679,122340.0,122330.0,0.013]
[1759975894049,0.89579679,122340.0,122330.0,0.2454]
[1759975895044,0.89479679,122340.0,122330.0,0.2404]
[1759975895326,0.89579679,122340.0,122330.0,0.2444]
[1759975895481,0.89579679,122340.0,122330.0,0.012]
[1759975895682,1.02891885,122340.0,122330.0,0.004]
[1759975895890,1.02891885,122340.0,122330.0,0.2364]
[1759975896092,1.02891885,122340.0,122330.0,0.2424]
[1759975899480,1.02891885,122340.0,122330.0,0.01]
[1759975899660,1.02891885,122340.0,122330.0,0.2424]
[1759975899859,1.19850734,122340.0,122330.0,0.2424]
[1759975901685,1.19850734,122340.0,122330.0,0.01]
[1759975901891,1.19850734,122340.0,122330.0,0.2424]
[1759975905867,1.19850734,122340.0,122330.0,0.01]
[1759975906076,1.19850734,122340.0,122330.0,0.2424]
[1759975906946,1.19850734,122340.0,122330.0,0.006]
[1759975907193,2.23068605,122340.0,122330.0,0.006]
[1759975907392,2.51052451,122340.0,122330.0,0.006]
[1759975907600,2.51052451,122340.0,122330.0,1e-08]
[1759975907601,2.60315945,122340.0,122330.0,1e-08]
[1759975907808,2.58027996,122340.0,122330.0,1e-08]
[1759975908018,2.58027996,122340.0,122300.0,0.01076132]
[1759975908019,1.01200804,122310.0,122300.0,0.00136132]
[1759975908224,1.10648207,122310.0,122300.0,0.00136132]
[1759975908431,1.14539207,122310.0,122300.0,0.00136132]
[1759975908871,1.16995399,122310.0,122300.0,0.00136132]
[1759975909074,1.43937781,122310.0,122300.0,0.00136132]
[1759975909340,1.67277781,122310.0,122300.0,0.00236132]
[1759975909549,1.67277781,122310.0,122300.0,0.00436132]
[1759975909759,1.44037781,122310.0,122300.0,0.00436132]
[1759975909964,1.44875181,122310.0,122300.0,0.00436132]
[1759975910170,1.68115181,122310.0,122300.0,0.00436132]
[1759975910956,1.47890371,122310.0,122300.0,0.00436132]
[1759975911186,0.94857003,122310.0,122300.0,0.00436132]
[1759975911340,1.42690725,122310.0,122300.0,0.00436132]
[1759975911519,1.19450725,122310.0,122300.0,0.00436132]
[1759975911915,1.42694725,122310.0,122300.0,0.00436132]
[1759975912123,1.19450725,122310.0,122300.0,0.00436132]
[1759975912334,1.42694725,122310.0,122300.0,0.00436132]
[1759975913045,1.19450725,122310.0,122300.0,0.00436132]
[1759975913252,1.42694725,122310.0,122300.0,0.00436132]
[1759975913862,1.47694725,122310.0,122300.0,0.00436132]
[1759975914070,0.73601813,122310.0,122300.0,0.00436132]
[1759975914258,1.47694725,122310.0,122300.0,0.00436132]
[1759975915927,1.24445925,122310.0,122300.0,0.00436132]
[1759975916146,1.47689925,122310.0,122300.0,0.00436132]
[1759975916347,1.24445925,122310.0,122300.0,0.00436132]
[1759975916547,1.47689925,122310.0,122300.0,0.00436132]
[1759975916711,1.5390655,122310.0,122300.0,0.00436132]
[1759975917314,1.3066255,122310.0,122300.0,0.00436132]
[1759975917557,1.5390655,122310.0,122300.0,0.00436132]
[1759975917761,1.47689925,122310.0,122300.0,0.00436132]
[1759975917920,0.39597013,122310.0,122300.0,0.16789361]
[1759975918118,0.61933069,122310.0,122300.0,0.18419361]
[1759975918366,0.93476877,122310.0,122300.0,0.18419361]
[1759975918603,0.93476877,122310.0,122300.0,0.21932361]
[1759975918604,0.06621323,122310.0,122300.0,0.21932361]
[1759975918817,0.00108197,122310.0,122300.0,0.21932361]
[1759975919026,0.00108197,122310.0,122300.0,0.45176361]
[1759975919466,0.00108197,122310.0,122300.0,0.46010804]
[1759975919693,0.00108197,122310.0,122300.0,0.45810804]
[1759975919908,8.197e-05,122310.0,122300.0,0.45710804]
[1759975920118,8.197e-05,122310.0,122300.0,0.46010804]
[1759975920340,0.00108197,122310.0,122300.0,0.23166804]
[1759975920551,0.00108197,122310.0,122300.0,0.22332361]
[1759975920759,0.25532653,122310.0,122300.0,0.45576361]
[1759975920964,0.25532653,122310.0,122300.0,0.54084361]
[1759975921608,0.27172653,122310.0,122300.0,0.28565361]
[1759975921821,0.30550653,122310.0,122300.0,0.48941361]
[1759975922030,0.25532653,122310.0,122300.0,0.54084361]
[1759975924623,0.00108197,122310.0,122300.0,0.30840361]
[1759975924823,0.25532653,122310.0,122300.0,0.30840361]
[1759975924999,0.46902545,122310.0,122300.0,0.18427361]
[1759975925210,0.46902545,122310.0,122300.0,0.48941361]
[1759975925409,0.28299653,122310.0,122300.0,0.50571361]
[1759975925609,0.28299653,122310.0,122300.0,0.51809361]
[1759975925816,0.44651545,122310.0,122300.0,0.51809361]
[1759975926244,0.28299653,122310.0,122300.0,0.51809361]
[1759975926431,0.44651545,122310.0,122300.0,0.51809361]
[1759975927296,0.28299653,122310.0,122300.0,0.51809361]
[1759975927450,0.28299653,122310.0,122300.0,0.28565361]
[1759975927648,0.28299653,122310.0,122300.0,0.51809361]
[1759975927855,0.28299653,122310.0,122300.0,0.54284361]
[1759975928481,0.28299653,122310.0,122300.0,0.31040361]
[1759975928719,0.44651545,122310.0,122300.0,0.54280361]
[1759975928923,0.44651545,122310.0,122300.0,0.51805361]
[1759975929478,0.44651545,122310.0,122300.0,0.28565361]
[1759975929682,0.44651545,122310.0,122300.0,0.51805361]
[1759975930536,0.28299653,122310.0,122300.0,0.51805361]
[1759975930773,0.01235197,122310.0,122300.0,0.54280361]
[1759975931002,0.25532653,122310.0,122300.0,0.31040361]
[1759975931202,0.25532653,122310.0,122300.0,0.54280361]
[1759975932038,0.00108197,122310.0,122300.0,0.31040361]
[1759975932513,0.25532653,122310.0,122300.0,0.54280361]
[1759975933223,0.00108197,122310.0,122300.0,0.54280361]
[1759975933682,0.00108197,122310.0,122300.0,0.31040361]
[1759975933891,0.00108197,122310.0,122300.0,0.54280361]
[1759975933892,0.25532653,122310.0,122300.0,0.54280361]
[1759975934107,0.00108197,122310.0,122300.0,0.54280361]
[1759975934317,0.25532653,122310.0,122300.0,0.54280361]
[1759975934538,0.25532653,122310.0,122300.0,0.31040361]
[1759975934752,0.25532653,122310.0,122300.0,0.54280361]
[1759975937374,0.25532653,122310.0,122300.0,0.31040361]
[1759975937793,0.25532653,122310.0,122300.0,0.54280361]
[1759975938439,0.25532653,122310.0,122300.0,0.31040361]
[1759975938854,0.25532653,122310.0,122300.0,0.54280361]
[1759975939061,0.25532653,122310.0,122300.0,0.31040361]
[1759975939268,0.25532653,122310.0,122300.0,0.54280361]
[1759975940522,0.00108197,122310.0,122300.0,0.31040361]
[1759975940735,0.25532653,122310.0,122300.0,0.54280361]
[1759975941579,0.25532653,122310.0,122300.0,0.31040361]
[1759975941784,0.25532653,122310.0,122300.0,0.54280361]
[1759975942397,0.25532653,122310.0,122300.0,0.31040361]
[1759975942602,0.25532653,122310.0,122300.0,0.54280361]
[1759975943214,0.25532653,122310.0,122300.0,0.31040361]
[1759975943416,0.25532653,122310.0,122300.0,0.54280361]
[1759975943618,0.25532653,122310.0,122300.0,0.31040361]
[1759975943828,0.25532653,122310.0,122300.0,0.54280361]
[1759975944034,0.25532653,122310.0,122300.0,0.31040361]
[1759975944242,0.25532653,122310.0,122300.0,0.22532361]
[1759975944477,0.25532653,122310.0,122300.0,0.54280361]
[1759975944682,0.25532653,122310.0,122300.0,0.31040361]
[1759975945289,0.25532653,122310.0,122300.0,0.54280361]
[1759975945507,0.25532653,122310.0,122300.0,0.31040361]
[1759975945717,0.25532653,122310.0,122300.0,0.54276361]
[1759975946142,0.25532653,122310.0,122300.0,0.31040361]
[1759975946329,0.25532653,122310.0,122300.0,0.54276361]
[1759975946533,0.25532653,122310.0,122300.0,0.31040361]
[1759975946913,0.25532653,122310.0,122300.0,0.54276361]
[1759975947121,0.25532653,122310.0,122300.0,0.31040361]
[1759975947319,0.25532653,122310.0,122300.0,0.22532361]
[1759975947520,0.43485545,122310.0,122300.0,0.28565361]
[1759975947721,0.43485545,122310.0,122300.0,0.20057361]
[1759975947935,0.43485545,122310.0,122300.0,0.51801361]
[1759975948123,0.27133653,122310.0,122300.0,0.51801361]
[1759975948325,0.27133653,122310.0,122300.0,0.20057361]
[1759975948516,0.30746653,122310.0,122300.0,0.25693361]
[1759975948727,0.30746653,122310.0,122300.0,0.50571361]
[1759975948922,0.28260653,122310.0,122300.0,0.50571361]
[1759975949461,0.28260653,122310.0,122300.0,0.51785361]
[1759975950126,0.28260653,122310.0,122300.0,0.54260361]
[1759975950958,0.28260653,122310.0,122300.0,0.31024361]
[1759975951170,0.28260653,122310.0,122300.0,0.54260361]
[1759975951387,0.44612545,122310.0,122300.0,0.22520361]
[1759975951583,0.28260653,122310.0,122300.0,0.54260361]
[1759975951785,0.28260653,122310.0,122300.0,0.31024361]
[1759975952347,0.28260653,122310.0,122300.0,0.54260361]
[1759975952532,0.28260653,122310.0,122300.0,0.31024361]
[1759975952733,0.28260653,122310.0,122300.0,0.54260361]
[1759975953500,0.00108197,122310.0,122300.0,0.31024361]
[1759975953706,0.25532653,122310.0,122300.0,0.54260361]
[1759975953981,0.25532653,122310.0,122300.0,0.22520361]
[1759975954127,0.25532653,122310.0,122300.0,0.54260361]
[1759975955777,0.25532653,122310.0,122300.0,0.31024361]
[1759975956219,0.25532653,122310.0,122300.0,0.54260361]
[1759975957029,0.25532653,122310.0,122300.0,0.31024361]
[1759975957225,0.25532653,122310.0,122300.0,0.54260361]
[1759975958199,0.25532653,122310.0,122300.0,0.31024361]
[1759975958397,0.25532653,122310.0,122300.0,0.54260361]
[1759975958606,0.00108197,122310.0,122300.0,0.31024361]
[1759975958812,0.25532653,122310.0,122300.0,0.54260361]
[1759975959026,0.25532653,122310.0,122300.0,0.31024361]
[1759975959232,0.25532653,122310.0,122300.0,0.54260361]
[1759975961025,0.25532653,122310.0,122300.0,0.31024361]
[1759975961428,0.25532653,122310.0,122300.0,0.54256361]
[1759975962016,0.00108197,122310.0,122300.0,0.31024361]
[1759975962220,0.00108197,122310.0,122300.0,0.54256361]
[1759975963041,0.00108197,122310.0,122300.0,0.31024361]
[1759975963258,0.00108197,122310.0,122300.0,0.54256361]
[1759975965021,0.00108197,122310.0,122300.0,0.31024361]
[1759975965243,0.00108197,122310.0,122300.0,0.54256361]
[1759975966130,0.00108197,122310.0,122300.0,0.39336567]
[1759975966340,0.00108197,122310.0,122300.0,0.62568567]
[1759975966547,0.00108197,122310.0,122300.0,0.39336567]
[1759975966753,0.00108197,122310.0,122300.0,0.62568567]
[1759975966959,0.00108197,122310.0,122300.0,0.65583757]
[1759975967164,0.00108197,122310.0,122300.0,0.73583437]
[1759975967371,8.197e-05,122310.0,122300.0,0.72883437]
[1759975967581,0.00108197,122310.0,122300.0,1.07583437]
[1759975967794,0.00050871,122330.0,122320.0,0.16350555]
[1759975967998,0.00050871,122330.0,122320.0,0.49138761]
[1759975968213,0.00050871,122330.0,122320.0,0.60743965]
[1759975968620,0.00050871,122330.0,122320.0,0.66960695]
[1759975968830,0.00050871,122330.0,122320.0,0.43728695]
[1759975969033,0.00050871,122330.0,122320.0,0.59153491]
[1759975969238,0.00050871,122330.0,122320.0,0.67657491]
[1759975970307,0.00050871,122330.0,122320.0,0.47640681]
[1759975970737,0.00150871,122330.0,122320.0,0.81563269]
[1759975970944,0.00150871,122330.0,122320.0,1.2604554]
[1759975971158,0.00150871,122330.0,122320.0,0.6028154]
[1759975971373,0.00150871,122330.0,122320.0,0.8350954]
[1759975971606,0.00150871,122330.0,122320.0,1.0281354]
[1759975971819,0.00150871,122330.0,122320.0,1.1804186]
[1759975972434,0.00150871,122330.0,122320.0,1.07751272]
[1759975975045,0.00150871,122330.0,122320.0,0.41991272]
[1759975975268,0.00150871,122330.0,122320.0,1.07747272]
[1759975975458,0.00150871,122330.0,122320.0,1.15746952]
[1759975977879,0.00150871,122330.0,122320.0,1.15738952]
[1759975981262,0.00150871,122330.0,122320.0,0.49990952]
[1759975981467,0.00150871,122330.0,122320.0,1.15738952]
[1759975981673,0.00150871,122330.0,122320.0,0.92514952]
[1759975981877,0.00150871,122330.0,122320.0,1.15738952]
[1759975984682,0.00150871,122330.0,122320.0,0.92514952]
[1759975985089,0.00150871,122330.0,122320.0,1.15734952]
[1759975985734,0.00150871,122330.0,122320.0,0.92514952]
[1759975986073,0.00150871,122330.0,122320.0,1.15734952]
[1759975986462,0.00150871,122330.0,122320.0,0.92514952]
[1759975986601,0.00150871,122330.0,122320.0,1.15734952]
[1759975987004,0.00150871,122330.0,122320.0,1.26514952]
[1759975987244,0.00150871,122330.0,122320.0,1.49734952]
[1759975988033,0.00150871,122330.0,122320.0,0.83790952]
[1759975988230,0.00150871,122330.0,122320.0,1.49534952]
[1759975988433,0.00150871,122330.0,122320.0,1.50034952]
[1759975988643,0.00050871,122330.0,122320.0,1.49634952]
[1759975988819,0.00050871,122330.0,122320.0,1.50334952]
[1759975989014,0.00150871,122330.0,122320.0,1.50334952]
[1759975991575,0.00150871,122330.0,122320.0,1.27110952]
[1759975992215,0.00150871,122330.0,122320.0,1.50326952]
[1759975993182,0.00150871,122330.0,122320.0,0.84590952]
[1759975993434,0.00150871,122330.0,122320.0,1.50326952]
[1759975994999,0.00150871,122330.0,122320.0,0.84590952]
[1759975995327,0.00150871,122330.0,122320.0,1.50326952]
[1759975995543,0.00150871,122330.0,122320.0,1.6061754]
[1759975996502,0.00150871,122330.0,122320.0,1.3740154]
[1759975996712,0.00150871,122330.0,122320.0,1.6061754]
[1759975999318,0.00150871,122330.0,122320.0,0.9488154]
[1759975999518,0.00150871,122330.0,122320.0,1.6061754]
[1759976000172,0.00150871,122330.0,122320.0,1.50326952]
[1759976001128,0.00150871,122330.0,122320.0,1.41822952]
[1759976001342,0.00150871,122330.0,122320.0,1.50326952]
[1759976004642,0.00150871,122330.0,122320.0,1.27110952]
[1759976004890,0.00150871,122330.0,122320.0,1.52620005]
[1759976006445,0.00150871,122330.0,122320.0,1.44116005]
[1759976006681,0.00150871,122330.0,122320.0,1.52620005]
[1759976007137,0.00150871,122330.0,122320.0,1.44116005]
[1759976007340,0.00150871,122330.0,122320.0,1.52620005]
[1759976008360,0.00150871,122330.0,122320.0,1.60530208]
[1759976009086,0.00150871,122330.0,122320.0,0.92376815]
[1759976009543,0.00150871,122330.0,122320.0,0.58376815]
[1759976009775,0.00150871,122330.0,122320.0,0.45625491]
[1759976010019,0.00150871,122330.0,122320.0,0.68837491]
[1759976010226,0.00050871,122330.0,122320.0,0.68137491]
[1759976010994,0.00050871,122330.0,122320.0,0.44925491]
[1759976011205,0.00050871,122330.0,122320.0,0.67637491]
[1759976011418,0.00050871,122330.0,122320.0,0.44625491]
[1759976011613,0.00150871,122330.0,122320.0,0.45225491]
[1759976011827,0.00150871,122330.0,122320.0,0.68437491]
[1759976014741,0.00150871,122330.0,122320.0,0.45225491]
[1759976014962,0.00150871,122330.0,122320.0,0.68437491]
[1759976015633,0.00150871,122330.0,122320.0,0.45225491]
[1759976015836,0.00150871,122330.0,122320.0,0.68437491]
[1759976016242,0.00150871,122330.0,122320.0,0.45225491]
[1759976016451,0.00150871,122330.0,122320.0,0.56240361]
[1759976017084,0.00150871,122330.0,122320.0,0.79452361]
[1759976017287,0.00150871,122330.0,122320.0,0.92203628]
[1759976018021,0.00150871,122330.0,122320.0,0.60991948]
[1759976018444,0.00150871,122330.0,122320.0,0.84203948]
[1759976019297,0.00150871,122330.0,122320.0,0.52487948]
[1759976019489,0.00150871,122330.0,122320.0,0.84199948]
[1759976020322,0.00150871,122330.0,122320.0,0.52487948]
[1759976020551,0.00150871,122330.0,122320.0,0.84199948]
[1759976024731,0.00150871,122330.0,122320.0,0.65060898]
[1759976025298,0.00150871,122330.0,122320.0,0.88268898]
[1759976026686,0.00150871,122330.0,122320.0,0.65060898]
[1759976026992,0.00150871,122330.0,122320.0,0.88268898]
[1759976031618,0.00150871,122330.0,122320.0,0.65060898]
[1759976031832,0.00150871,122330.0,122320.0,0.88264898]
[1759976034016,0.00150871,122330.0,122320.0,0.65060898]
[1759976034208,0.00150871,122330.0,122320.0,0.88264898]
[1759976035795,0.00057089,122330.0,122320.0,0.88264898]
[1759976036798,0.00057089,122330.0,122320.0,0.65060898]
[1759976037027,0.00013764,122330.0,122320.0,0.88264898]
[1759976037555,0.00013764,122330.0,122320.0,0.65060898]
[1759976037776,0.00013764,122330.0,122320.0,0.88264898]
[1759976041348,0.00013764,122330.0,122320.0,0.65060898]
[1759976041791,0.00013764,122330.0,122320.0,0.88264898]
[1759976041934,0.00013764,122330.0,122320.0,0.77968165]
[1759976042134,0.00013764,122330.0,122320.0,0.54764165]
[1759976042344,0.00013764,122330.0,122320.0,0.77968165]
[1759976043365,0.00013764,122330.0,122320.0,0.54764165]
[1759976043571,0.00013764,122330.0,122320.0,0.77968165]
[1759976046555,0.00013764,122330.0,122320.0,0.46260165]
[1759976046727,0.00013764,122330.0,122320.0,1.11980165]
[1759976054981,0.00013764,122330.0,122320.0,1.03476165]
[1759976055198,0.00013764,122330.0,122320.0,1.11980165]
[1759976057167,0.00013764,122330.0,122320.0,1.11976165]
[1759976059403,0.00013764,122330.0,122320.0,0.88780165]
[1759976059647,0.00013764,122330.0,122320.0,1.11976165]
[1759976065337,0.00013764,122330.0,122320.0,0.88780165]
[1759976065560,0.00013764,122330.0,122320.0,1.11976165]
[1759976065788,0.00013764,122330.0,122320.0,0.88780165]
[1759976066002,0.00013764,122330.0,122320.0,1.11976165]
[1759976067133,0.00013764,122330.0,122320.0,0.88780165]
[1759976067374,1.13111254,122340.0,122330.0,0.50349219]
[1759976067375,0.69958339,122340.0,122330.0,0.50349219]
[1759976067604,0.5562526,122340.0,122330.0,1.00412294]
[1759976067827,0.22098051,122340.0,122330.0,0.77220294]
[1759976068043,0.26579742,122400.0,122390.0,0.16341204]
[1759976068249,0.26579742,122400.0,122390.0,0.17911204]
[1759976068250,0.70048518,122400.0,122390.0,0.17911204]
[1759976068499,0.70048518,122400.0,122390.0,0.0157]
[1759976068716,0.16341204,122390.0,122370.0,0.01176]
[1759976068934,0.16341204,122390.0,122370.0,0.08504]
[1759976068935,0.68295023,122380.0,122370.0,0.08504]
[1759976069197,0.72412023,122380.0,122370.0,0.31696]
[1759976070766,0.72412023,122380.0,122370.0,0.48039875]
[1759976071211,0.72412023,122380.0,122370.0,0.48139875]
[1759976071436,0.73012023,122380.0,122370.0,0.48139875]
[1759976072922,0.72474754,122380.0,122370.0,0.48139875]
[1759976073138,0.53681215,122380.0,122370.0,0.33166223]
[1759976073348,0.53935459,122380.0,122370.0,0.57534223]
[1759976073594,0.53935459,122380.0,122370.0,0.50885875]
[1759976074004,0.70277998,122380.0,122370.0,0.27693875]
[1759976074205,0.54472728,122380.0,122370.0,0.50881875]
[1759976074562,0.56923728,122380.0,122370.0,0.50881875]
[1759976075742,0.73266267,122380.0,122370.0,0.50881875]
[1759976076958,0.73266267,122380.0,122370.0,0.49311875]
[1759976079829,0.22440783,122380.0,122370.0,0.49311875]
[1759976080038,0.73266267,122380.0,122370.0,0.48135875]
[1759976081620,0.73266267,122380.0,122370.0,0.001]
[1759976081842,0.73266267,122380.0,122370.0,0.31788]
[1759976082073,0.73266267,122380.0,122370.0,0.086]
[1759976082289,0.73266267,122380.0,122370.0,0.001]
[1759976082503,0.73266267,122380.0,122370.0,0.086]
[1759976082721,0.73266267,122380.0,122370.0,0.31788]
[1759976083763,0.73266267,122380.0,122370.0,0.001]
[1759976083948,0.563129,122380.0,122370.0,0.31784]
[1759976084577,0.563129,122380.0,122370.0,0.001]
[1759976084778,0.563129,122380.0,122370.0,0.31784]
[1759976085754,0.9769121,122380.0,122370.0,0.001]
[1759976085962,0.9769121,122380.0,122370.0,0.23284]
[1759976091445,1.06003416,122380.0,122370.0,0.001]
[1759976091658,1.06003416,122380.0,122370.0,0.23284]
[1759976091786,1.08458123,122380.0,122370.0,0.23284]
[1759976093087,1.08458123,122380.0,122370.0,0.23184]
[1759976093428,1.08758123,122380.0,122370.0,0.23284]
[1759976093849,1.10558123,122380.0,122370.0,0.23284]
[1759976094233,1.10558123,122380.0,122370.0,0.001]
[1759976100930,1.4443024,122380.0,122370.0,0.001]
[1759976101317,1.4943024,122380.0,122370.0,0.001]
[1759976102733,1.4205193,122380.0,122370.0,0.001]
[1759976102936,1.31363813,122380.0,122370.0,0.001]
[1759976103146,1.08179813,122380.0,122370.0,0.001]
[1759976104829,1.05725106,122380.0,122370.0,0.001]
[1759976106385,0.974129,122380.0,122370.0,0.001]
[1759976111761,0.974129,122380.0,122370.0,0.2328]
[1759976112576,0.974129,122380.0,122370.0,0.001]
[1759976112775,0.974129,122380.0,122370.0,0.2328]
[1759976114799,1.0541258,122380.0,122370.0,0.001]
[1759976114996,1.0541258,122380.0,122370.0,0.2328]
[1759976117109,1.0541258,122380.0,122370.0,0.001]
[1759976117312,0.974129,122380.0,122370.0,0.001]
[1759976117527,0.27089783,122380.0,122370.0,0.33298875]
[1759976117726,0.609619,122380.0,122370.0,0.18099]
[1759976117958,0.632269,122380.0,122370.0,0.18099]
[1759976118337,0.632269,122380.0,122370.0,0.02899]
[1759976118481,0.632269,122380.0,122370.0,0.26079]
[1759976118691,0.614269,122380.0,122370.0,0.26079]
[1759976118886,0.605269,122380.0,122370.0,0.25979]
[1759976119092,0.582619,122380.0,122370.0,0.02799]
[1759976119315,0.582619,122380.0,122370.0,0.25979]
[1759976119520,0.583619,122380.0,122370.0,0.25979]
[1759976119924,0.606269,122380.0,122370.0,0.2318]
[1759976120124,0.610269,122380.0,122370.0,0.2318]
[1759976122861,0.16343875,122370.0,122360.0,0.01144]
[1759976123084,0.51342992,122370.0,122360.0,0.3168]
[1759976123318,0.52908992,122370.0,122360.0,0.4802521]
[1759976123487,0.55173992,122370.0,122360.0,0.4802521]
[1759976124071,0.55373992,122370.0,122360.0,0.4802521]
[1759976125154,0.55373992,122370.0,122360.0,0.4812521]
[1759976125386,0.55373992,122370.0,122360.0,0.3178]
[1759976125585,0.55373992,122370.0,122360.0,0.4812521]
[1759976125968,0.55373992,122370.0,122360.0,0.3962121]
[1759976126179,0.55373992,122370.0,122360.0,0.4812521]
[1759976128372,0.55577404,122370.0,122360.0,0.4812521]
[1759976128931,0.21705287,122370.0,122360.0,0.4978021]
[1759976129176,0.53312404,122370.0,122360.0,0.4978021]
[1759976129968,0.53312404,122370.0,122360.0,0.33435]
[1759976130311,0.55577404,122370.0,122360.0,0.33435]
[1759976130503,0.53312404,122370.0,122360.0,0.33435]
[1759976130840,0.53312404,122370.0,122360.0,0.4978021]
[1759976133884,0.55577404,122370.0,122360.0,0.31772]
[1759976134084,0.55577404,122370.0,122360.0,0.4811721]
[1759976134715,0.55577404,122370.0,122360.0,0.31772]
[1759976135067,0.55577404,122370.0,122360.0,0.086]
[1759976135273,0.55577404,122370.0,122360.0,0.001]
[1759976135274,0.97335928,122370.0,122360.0,0.001]
[1759976135495,0.63463811,122370.0,122360.0,0.23272]
[1759976136310,0.55577404,122370.0,122360.0,0.001]
[1759976136519,0.55577404,122370.0,122360.0,0.23272]
[1759976137773,0.55577404,122370.0,122360.0,0.001]
[1759976137967,0.55577404,122370.0,122360.0,0.23272]
[1759976145859,0.72526469,122370.0,122360.0,0.23272]
[1759976147333,0.80526149,122370.0,122360.0,0.23272]
[1759976148444,0.29704967,122370.0,122360.0,0.23272]
[1759976148655,0.72526469,122370.0,122360.0,0.23272]
[1759976149829,0.72526469,122370.0,122360.0,0.001]
[1759976150042,0.72526469,122370.0,122360.0,0.23272]
[1759976152116,0.72526469,122370.0,122360.0,0.36558919]
[1759976152117,0.00403412,122370.0,122360.0,0.36558919]
[1759976152376,0.00403412,122370.0,122360.0,0.53368535]
[1759976152613,0.00403412,122370.0,122360.0,0.66120927]
[1759976153043,0.00203412,122370.0,122360.0,0.89192927]
[1759976153253,0.00203412,122370.0,122360.0,0.82873424]
[1759976153469,0.00303412,122370.0,122360.0,0.83155293]
[1759976153705,0.00303412,122370.0,122360.0,0.82855293]
[1759976153913,0.00203412,122370.0,122360.0,0.82555293]
[1759976154060,0.00203412,122370.0,122360.0,0.83555293]
[1759976154266,0.00303412,122370.0,122360.0,0.83055293]
[1759976154981,0.00303412,122370.0,122360.0,0.83051293]
[1759976155783,0.00303412,122370.0,122360.0,0.83751293]
[1759976156835,0.00303412,122370.0,122360.0,0.60583293]
[1759976157258,0.00303412,122370.0,122360.0,0.83751293]
[1759976157716,1e-08,122370.0,122360.0,1.20251292]
[1759976157944,1e-08,122370.0,122360.0,1.09970935]
[1759976158164,1e-08,122370.0,122360.0,0.78298935]
[1759976158381,1e-08,122370.0,122360.0,1.43978935]
[1759976158980,1e-08,122370.0,122360.0,0.78298935]
[1759976159197,0.00090165,122400.0,122390.0,0.16341204]
[1759976159395,0.00090165,122400.0,122390.0,0.4896841]
[1759976159675,0.25500756,122400.0,122390.0,0.6149941]
[1759976159822,0.25500756,122400.0,122390.0,0.5299941]
[1759976160031,0.25500756,122400.0,122390.0,0.2983541]
[1759976160414,0.25500756,122400.0,122390.0,0.6149941]
[1759976160638,0.25500756,122400.0,122390.0,0.6169941]
[1759976162042,0.00090165,122400.0,122390.0,0.3853541]
[1759976162248,0.00090165,122400.0,122390.0,0.6169941]
[1759976162666,0.00090165,122400.0,122390.0,0.3003541]
[1759976162872,0.00090165,122400.0,122390.0,0.6169941]
[1759976164317,0.00090165,122400.0,122390.0,0.62500686]
[1759976164718,0.00242661,122400.0,122390.0,0.70500366]
[1759976165078,0.00242661,122400.0,122390.0,0.62500686]